bitfinex-derivatives/quotes_ETHF0:USTF0_20250322
["timestamp","ask_amount","ask_price","bid_price","bid_amount"]
[1742643851821,5.51459,1991.8,1991.7,3.08287636]
[1742643853527,5.51459,1991.8,1991.7,2.07833636]
[1742643854321,5.51459,1991.8,1991.7,3.08287636]
[1742643856519,5.51459,1991.8,1991.7,2.07833636]
[1742643858125,5.51459,1991.8,1991.7,3.08287636]
[1742643860126,2.30679,1991.8,1991.7,3.08287636]
[1742643883664,2.30679,1991.8,1991.7,3.76817636]
[1742643889470,2.30679,1991.8,1991.7,0.00753636]
[1742643889764,2.96369,1991.8,1991.7,0.00753636]
[1742643889952,2.96369,1991.8,1991.7,2.35507636]
[1742643889953,3.63669,1991.8,1991.7,2.35507636]
[1742643892566,3.63669,1991.8,1991.7,1.35053636]
[1742643894268,3.63669,1991.8,1991.7,2.35507636]
[1742643896070,6.84449,1991.8,1991.7,2.35507636]
[1742643896458,5.167,1991.8,1991.7,2.35507636]
[1742643896663,4.5101,1991.8,1991.7,3.02337636]
[1742643899173,1.3023,1991.8,1991.7,3.02337636]
[1742643899772,2.30679,1991.8,1991.7,3.02337636]
[1742643901075,2.30679,1991.8,1991.7,0.00753636]
[1742643901274,2.97479,1991.8,1991.7,0.00753636]
[1742643910080,2.97479,1991.8,1991.7,1.33353636]
[1742643910477,2.97479,1991.8,1991.7,2.33807636]
[1742643910682,2.97479,1991.8,1991.7,1.33353636]
[1742643910986,2.30679,1991.8,1991.7,2.33807636]
[1742643915185,2.30679,1991.8,1991.7,3.03837636]
[1742643916286,4.21224,1991.9,1991.8,1.00449]
[1742643916486,4.21224,1991.9,1991.8,3.11089]
[1742643917578,5.49724,1991.9,1991.8,3.11089]
[1742643921987,7.02718702,1991.9,1991.8,3.11089]
[1742643923893,5.32314702,1991.9,1991.8,3.11089]
[1742643924085,4.4928,1991.9,1991.8,3.11089]
[1742643924394,5.32279687,1991.9,1991.8,3.11089]
[1742643925195,6.32723687,1991.9,1991.8,3.11089]
[1742643925397,5.49724,1991.9,1991.8,3.11089]
[1742643926096,6.32726372,1991.9,1991.8,3.11089]
[1742643926496,5.49724,1991.9,1991.8,3.11089]
[1742643926687,4.4928,1991.9,1991.8,3.11089]
[1742643927247,5.49724,1991.9,1991.8,3.11089]
[1742643927513,5.32283569,1991.9,1991.8,3.11089]
[1742643927901,6.32727569,1991.9,1991.8,3.11089]
[1742643928093,6.32727569,1991.9,1991.8,6.29889]
[1742643928997,5.32283569,1991.9,1991.8,6.29889]
[1742643929199,5.49724,1991.9,1991.8,6.29889]
[1742643929401,5.49724,1991.9,1991.8,5.2944]
[1742643929597,6.18124,1991.9,1991.8,6.29889]
[1742643929798,6.87604,1991.9,1991.8,6.29889]
[1742643930092,6.87604,1991.9,1991.8,5.2944]
[1742643931300,6.87604,1991.9,1991.8,6.29889]
[1742643935806,6.87604,1991.9,1991.8,5.2944]
[1742643936008,6.87604,1991.9,1991.8,6.29889]
[1742643936203,1.00449,1991.8,1991.7,0.00753636]
[1742643936503,3.15769854,1991.8,1991.7,0.00753636]
[1742643936709,4.06932817,1991.8,1991.7,0.00753636]
[1742643937106,2.32789,1991.8,1991.7,0.00753636]
[1742643938009,4.06934001,1991.8,1991.7,1.30613636]
[1742643939006,7.27714001,1991.8,1991.7,1.30613636]
[1742643942407,5.53569,1991.8,1991.7,1.30613636]
[1742643943315,6.36478945,1991.8,1991.7,1.30613636]
[1742643943511,7.27564039,1991.8,1991.7,1.30613636]
[1742643944106,6.44654094,1991.8,1991.7,1.30613636]
[1742643944617,5.53569,1991.8,1991.7,1.30613636]
[1742643951107,3.157062,1991.8,1991.7,1.30613636]
[1742643951308,6.364862,1991.8,1991.7,1.30613636]
[1742643958123,7.27586623,1991.8,1991.7,1.30613636]
[1742643959118,6.44669423,1991.8,1991.7,1.30613636]
[1742643959616,5.53569,1991.8,1991.7,1.30613636]
[1742643961415,2.32789,1991.8,1991.7,1.30613636]
[1742643961619,5.53569,1991.8,1991.7,1.30613636]
[1742643970327,6.36554431,1991.8,1991.7,1.30613636]
[1742643972126,5.53569,1991.8,1991.7,1.30613636]
[1742643974323,6.36530981,1991.8,1991.7,1.30613636]
[1742643974629,7.27674051,1991.8,1991.7,1.30613636]
[1742643978930,7.27674051,1991.8,1991.7,1.96563636]
[1742643981330,6.4471207,1991.8,1991.7,1.96563636]
[1742643981734,5.53569,1991.8,1991.7,1.96563636]
[1742643982630,6.36592292,1991.8,1991.7,1.96563636]
[1742643982831,5.53569,1991.8,1991.7,1.96563636]
[1742643988032,5.53569,1991.8,1991.7,1.30613636]
[1742643988429,4.5312,1991.8,1991.7,1.30613636]
[1742643988733,4.5312,1991.8,1991.7,2.98377636]
[1742643988734,5.53569,1991.8,1991.7,2.98377636]
[1742643988928,4.5312,1991.8,1991.7,2.98377636]
[1742643989133,5.53569,1991.8,1991.7,2.98377636]
[1742643989337,4.5312,1991.8,1991.7,2.98377636]
[1742643989530,5.53569,1991.8,1991.7,2.98377636]
[1742643991538,4.5312,1991.8,1991.7,2.98377636]
[1742643993337,5.53569,1991.8,1991.7,2.98377636]
[1742643995436,4.5312,1991.8,1991.7,2.98377636]
[1742643995641,5.53569,1991.8,1991.7,2.98377636]
[1742643998134,4.5312,1991.8,1991.7,2.98377636]
[1742643998740,3.2078,1991.8,1991.7,2.98377636]
[1742643999441,3.2078,1991.8,1991.7,6.17077636]
[1742643999846,2.28876,1991.9,1991.8,1.00449]
[1742644000139,1.00446,1991.9,1991.8,3.02359]
[1742644000334,2.28876,1991.9,1991.8,3.02359]
[1742644017956,1.2843,1991.9,1991.8,3.02359]
[1742644020852,1.9531,1991.9,1991.8,3.02359]
[1742644021054,2.95754,1991.9,1991.8,2.32889]
[1742644028862,1.2843,1991.9,1991.8,3.01689]
[1742644037969,2.28874,1991.9,1991.8,3.01689]
[1742644038269,2.96324,1991.9,1991.8,3.01689]
[1742644039068,1.2843,1991.9,1991.8,3.01689]
[1742644050974,1.9316,1991.9,1991.8,3.01689]
[1742644052876,2.93604,1991.9,1991.8,3.01689]
[1742644053080,1.9316,1991.9,1991.8,3.01689]
[1742644054975,1.2843,1991.9,1991.8,3.01689]
[1742644056275,1.2843,1991.9,1991.8,2.32889]
[1742644056581,2.92864,1991.9,1991.8,2.32889]
[1742644057083,3.58844,1991.9,1991.8,2.32889]
[1742644057782,2.584,1991.9,1991.8,2.32889]
[1742644057973,3.58844,1991.9,1991.8,2.32889]
[1742644059780,2.584,1991.9,1991.8,2.32889]
[1742644061388,3.58844,1991.9,1991.8,2.32889]
[1742644062189,2.584,1991.9,1991.8,2.32889]
[1742644066181,1.9242,1991.9,1991.8,2.32889]
[1742644081201,1.2843,1991.9,1991.8,2.32889]
[1742644087301,1.9737,1991.9,1991.8,1.00449]
[1742644087500,1.9737,1991.9,1991.8,4.18849]
[1742644091903,1.9737,1991.9,1991.8,5.49359]
[1742644094599,2.97814,1991.9,1991.8,5.49359]
[1742644094799,1.9737,1991.9,1991.8,5.49359]
[1742644097206,2.97814,1991.9,1991.8,5.49359]
[1742644098510,1.9737,1991.9,1991.8,5.49359]
[1742644099112,2.97814,1991.9,1991.8,5.49359]
[1742644100106,1.9737,1991.9,1991.8,5.49359]
[1742644102206,2.97814,1991.9,1991.8,5.49359]
[1742644105815,1.9737,1991.9,1991.8,5.49359]
[1742644108217,2.97814,1991.9,1991.8,5.49359]
[1742644110117,2.97814,1991.9,1991.8,6.12899]
[1742644112122,2.97814,1991.9,1991.8,4.4891]
[1742644112619,2.97814,1991.9,1991.8,5.49359]
[1742644112815,2.97814,1991.9,1991.8,4.4891]
[1742644114519,2.97814,1991.9,1991.8,5.49359]
[1742644114717,2.97814,1991.9,1991.8,4.4891]
[1742644116321,3.80954333,1991.9,1991.8,4.4891]
[1742644116812,1.00449,1991.8,1991.7,0.00753636]
[1742644117013,5.51309,1991.8,1991.7,0.00753636]
[1742644117215,7.03659333,1991.8,1991.7,0.00753636]
[1742644117622,7.94996646,1991.8,1991.7,0.00753636]
[1742644117916,12.11086646,1991.8,1991.7,1.36493636]
[1742644124126,11.19749333,1991.8,1991.7,1.36493636]
[1742644124422,10.36609,1991.8,1991.7,1.36493636]
[1742644128432,7.15829,1991.8,1991.7,1.36493636]
[1742644128632,10.36609,1991.8,1991.7,1.36493636]
[1742644131526,1.00485,1991.1,1991.0,3.2078]
[1742644131834,1.00485,1991.1,1991.0,1.3914]
[1742644132031,1.83506137,1991.1,1991.0,1.3914]
[1742644132232,3.11406137,1991.1,1991.0,1.3914]
[1742644132434,2.28385,1991.1,1991.0,1.3914]
[1742644141033,2.28385,1991.1,1990.8,0.6726]
[1742644141034,1.00495,1990.9,1990.8,0.6726]
[1742644141334,4.21275,1990.9,1990.8,1.9487]
[1742644141837,4.84905,1990.9,1990.8,1.9487]
[1742644143340,1.64125,1990.9,1990.8,1.9487]
[1742644143640,4.84905,1990.9,1990.8,1.9487]
[1742644143838,9.00995,1990.9,1990.8,1.9487]
[1742644147238,8.37365,1990.9,1990.8,1.9487]
[1742644148733,9.01495,1990.9,1990.8,1.9487]
[1742644152542,9.65025,1990.9,1990.8,1.9487]
[1742644155543,1.005,1990.8,1990.7,0.00753636]
[1742644155845,1.3452,1990.8,1990.7,1.3041]
[1742644156049,2.3502,1990.8,1990.7,1.3041]
[1742644157245,2.3502,1990.8,1990.7,2.6229]
[1742644157841,2.3502,1990.8,1990.7,1.959]
[1742644166648,7.37623636,1990.9,1990.8,1.005]
[1742644166859,7.37623636,1990.9,1990.8,1.9532]
[1742644166860,8.38118636,1990.9,1990.8,1.9532]
[1742644168155,1.005,1990.8,1990.7,0.6549]
[1742644168356,2.2892,1990.8,1990.7,1.9478]
[1742644180063,2.2892,1990.8,1990.7,1.2929]
[1742644185455,3.12051247,1990.8,1990.7,1.2929]
[1742644185768,1.00505,1990.7,1990.6,0.00753636]
[1742644185970,6.15175,1990.7,1990.6,1.32373636]
[1742644188266,6.15175,1990.7,1990.6,0.00753636]
[1742644188467,6.15175,1990.7,1990.6,1.34583636]
[1742644191181,5.51335,1990.7,1990.6,1.34583636]
[1742644194170,2.30555,1990.7,1990.6,1.34583636]
[1742644194371,5.51335,1990.7,1990.6,1.34583636]
[1742644194771,5.51335,1990.7,1990.6,0.00753636]
[1742644194968,1.00525,1990.3,1990.2,1.3711]
[1742644195168,4.21305,1990.3,1990.2,1.3711]
[1742644195771,5.61225,1990.3,1990.2,1.3711]
[1742644198371,5.61225,1990.3,1990.1,0.6932]
[1742644198372,1.0053,1990.2,1990.1,0.6932]
[1742644198569,2.4045,1990.2,1990.1,0.6932]
[1742644206382,1.00555,1989.7,1989.6,7.39835]
[1742644206776,1.01306636,1989.8,1989.7,1.00551]
[1742644207085,0.00753636,1989.8,1989.7,1.00551]
[1742644207781,0.00753636,1989.8,1989.7,1.70851]
[1742644208282,1.01303636,1989.8,1989.7,1.70851]
[1742644209179,0.00753636,1989.8,1989.7,1.70851]
[1742644209383,0.00753636,1989.8,1989.7,2.39981]
[1742644210583,1.01303636,1989.8,1989.7,2.39981]
[1742644210778,0.00753636,1989.8,1989.7,2.39981]
[1742644214987,0.00753636,1989.8,1989.7,3.75331]
[1742644215383,8.0366,1990.3,1990.1,1.0053]
[1742644215591,1.3174,1990.4,1990.3,1.00525]
[1742644215791,2.3226,1990.4,1990.3,1.00525]
[1742644216292,2.3226,1990.4,1990.3,2.35875]
[1742644222290,2.3226,1990.4,1990.3,1.3535]
[1742644223286,2.3226,1990.4,1990.3,2.35875]
[1742644224987,0.00753636,1990.5,1990.3,1.3535]
[1742644225192,0.00753636,1990.5,1990.4,7.397]
[1742644225396,0.00753636,1990.5,1990.4,4.1892]
[1742644225789,1.35653636,1990.5,1990.4,4.1892]
[1742644226589,0.00753636,1990.5,1990.4,4.1892]
[1742644227796,0.00753636,1990.5,1990.4,4.8334]
[1742644235492,1.34863636,1990.5,1990.4,4.8334]
[1742644238502,1.34863636,1990.5,1990.4,8.0412]
[1742644244312,1.0052,1990.4,1990.3,2.35873]
[1742644244606,2.3649,1990.4,1990.3,5.54273]
[1742644245208,3.6527,1990.4,1990.3,5.54273]
[1742644246210,1.00525,1990.3,1990.2,1.66771636]
[1742644246411,2.29305,1990.3,1990.2,3.19053636]
[1742644248011,2.29305,1990.3,1990.2,0.00753636]
[1742644248906,5.50085,1990.3,1990.2,0.00753636]
[1742644249108,2.51326,1990.2,1989.6,3.2078]
[1742644249418,1.00549,1989.9,1989.8,1.00548]
[1742644250610,1.3376,1990.0,1989.9,1.00545]
[1742644250811,1.3376,1990.0,1989.9,4.18945]
[1742644251413,2.343,1990.0,1989.9,5.57595]
[1742644251613,1.3376,1990.0,1989.9,5.57595]
[1742644252216,2.343,1990.0,1989.9,5.57595]
[1742644253919,1.3376,1990.0,1989.9,5.57595]
[1742644254418,1.3376,1990.0,1989.9,6.94235]
[1742644254620,2.343,1990.0,1989.9,6.94235]
[1742644255719,1.3376,1990.0,1989.9,6.94235]
[1742644263019,4.16843636,1990.5,1990.4,1.0052]
[1742644263020,3.21533636,1990.5,1990.4,1.0052]
[1742644264028,4.22048636,1990.5,1990.4,1.0052]
[1742644264923,4.53403636,1990.5,1990.4,1.0052]
[1742644265123,5.53918636,1990.5,1990.4,1.0052]
[1742644265724,4.53403636,1990.5,1990.4,1.0052]
[1742644266629,4.53403636,1990.5,1990.4,4.1892]
[1742644268926,1.32623636,1990.5,1990.4,4.1892]
[1742644271822,1.32623636,1990.5,1990.4,5.5848]
[1742644285239,2.33138636,1990.5,1990.4,4.1882]
[1742644285439,2.33138636,1990.5,1990.4,1.0052]
[1742644287634,1.00522,1990.4,1990.3,1.0052]
[1742644287839,1.9661,1990.4,1990.3,1.0052]
[1742644288243,1.9661,1990.4,1990.3,2.3189]
[1742644288540,1.2945,1990.4,1990.3,2.3189]
[1742644288741,1.2945,1990.4,1990.3,3.7011]
[1742644293835,1.2945,1990.4,1990.3,1.0052]
[1742644294041,1.974,1990.4,1990.3,1.0052]
[1742644294746,1.974,1990.4,1990.3,2.3143]
[1742644295146,1.00525,1990.3,1990.2,4.18828]
[1742644295448,1.00531,1990.2,1990.1,4.18831]
[1742644295763,2.0845,1990.3,1990.1,3.183]
[1742644296047,1.368,1990.2,1990.1,3.183]
[1742644296445,2.37331,1990.2,1990.1,4.18831]
[1742644296641,2.37331,1990.2,1990.1,3.183]
[1742644296841,2.37331,1990.2,1990.1,4.18835]
[1742644297551,1.00535,1990.1,1990.0,1.0054]
[1742644297741,3.02385,1990.1,1990.0,1.0054]
[1742644298351,1.0054,1990.0,1989.9,5.58851]
[1742644298646,1.0054,1990.0,1989.3,3.2078]
[1742644298647,9.4104,1990.0,1989.3,3.2078]
[1742644298835,6.67454,1989.9,1989.3,3.2078]
[1742644299041,4.21339,1989.7,1989.3,3.87618]
[1742644299241,0.7012,1989.6,1989.5,1.00565]
[1742644299438,2.1081,1989.6,1989.5,2.36745]
[1742644300054,3.1137,1989.6,1989.5,2.36745]
[1742644300250,1.00565,1989.5,1989.4,1.00568]
[1742644300439,2.41255,1989.5,1989.4,1.00568]
[1742644300944,2.41255,1989.5,1989.3,1.00572]
[1742644301145,2.41261,1989.4,1989.3,3.184]
[1742644302044,2.0856,1989.4,1989.2,1.3618]
[1742644302246,1.2948,1989.3,1989.2,1.3618]
[1742644302446,1.2948,1989.3,1989.2,2.36757]
[1742644302854,2.30056,1989.3,1989.2,2.36757]
[1742644303055,1.2948,1989.3,1989.2,2.36757]
[1742644303849,1.2948,1989.3,1989.2,5.55157]
[1742644307158,0.00753636,1989.5,1989.4,1.00571]
[1742644308546,1.32753636,1989.5,1989.4,2.34291]
[1742644312258,2.33318636,1989.5,1989.4,2.34291]
[1742644312461,1.32753636,1989.5,1989.4,2.34291]
[1742644313660,1.32753636,1989.5,1989.4,3.04641]
[1742644314456,2.33318636,1989.5,1989.4,3.04641]
[1742644315756,1.32753636,1989.5,1989.4,3.04641]
[1742644320061,2.33318636,1989.5,1989.4,3.04641]
[1742644320258,1.32753636,1989.5,1989.4,3.04641]
[1742644320459,1.00571,1989.4,1989.3,1.67913]
[1742644320663,1.32753636,1989.5,1989.3,3.06473]
[1742644320862,2.33323636,1989.5,1989.3,3.06473]
[1742644321070,1.4076,1989.4,1989.3,3.06473]
[1742644323065,1.4076,1989.4,1989.2,3.184]
[1742644323066,1.4076,1989.4,1989.2,1.00578]
[1742644323262,2.33391,1989.3,1989.2,1.00581]
[1742644324067,2.33389,1989.3,1989.2,1.00581]
[1742644324265,1.4076,1989.4,1989.3,1.00576]
[1742644324966,1.4076,1989.4,1989.3,6.26526]
[1742644325171,0.00753636,1989.5,1989.4,1.00571]
[1742644325360,4.1609,1989.6,1989.5,1.00565]
[1742644325765,4.1609,1989.6,1989.5,2.38195]
[1742644326472,5.1665,1989.6,1989.5,2.38195]
[1742644326669,6.4587,1989.6,1989.5,3.05515]
[1742644326967,5.4531,1989.6,1989.5,3.05515]
[1742644328570,6.4587,1989.6,1989.5,3.05515]
[1742644328769,2.2978,1989.6,1989.5,3.05515]
[1742644331873,0.00753636,1989.7,1989.6,1.0056]
[1742644332074,1.38853636,1989.7,1989.6,6.224]
[1742644332572,0.00753636,1989.7,1989.6,6.224]
[1742644338480,0.00753636,1989.7,1989.6,3.034]
[1742644338979,0.00753636,1989.7,1989.6,6.225]
[1742644339679,0.00753636,1989.7,1989.6,4.1966]
[1742644339874,1.01308636,1989.7,1989.4,2.39950636]
[1742644340082,1.0056,1989.6,1989.5,5.2826]
[1742644340975,1.3453,1989.6,1989.5,6.28825]
[1742644350177,1.3453,1989.6,1989.4,0.00753636]
[1742644350381,1.00565,1989.5,1989.4,0.00753636]
[1742644350780,2.30825,1989.5,1989.4,0.00753636]
[1742644353690,2.30825,1989.5,1989.4,1.36903636]
[1742644353890,5.51605,1989.5,1989.4,1.36903636]
[1742644354286,5.51605,1989.5,1989.4,0.00753636]
[1742644354985,2.30825,1989.5,1989.4,1.01324636]
[1742644355293,2.30825,1989.5,1989.4,2.41754636]
[1742644355888,2.30825,1989.5,1989.4,1.41183636]
[1742644359895,5.51605,1989.5,1989.4,0.00753636]
[1742644363400,2.30825,1989.5,1989.4,1.01324636]
[1742644363700,2.30825,1989.5,1989.4,1.67254636]
[1742644365988,2.30825,1989.5,1989.4,0.00753636]
[1742644366193,1.00581,1989.2,1989.1,4.5262]
[1742644366392,1.00581,1989.2,1989.1,3.2078]
[1742644367399,1.00586,1989.1,1989.0,1.3184]
[1742644367893,1.328,1989.2,1989.0,1.3184]
[1742644368097,1.00586,1989.1,1989.0,2.32431]
[1742644368293,1.328,1989.2,1989.0,2.32431]
[1742644368294,2.33385,1989.2,1989.0,2.32431]
[1742644368595,1.328,1989.2,1989.1,2.32426]
[1742644369297,4.1609,1989.5,1989.4,1.00571]
[1742644369797,1.00567,1989.5,1989.3,1.00572]
[1742644369999,1.00567,1989.5,1989.3,1.68302]
[1742644370300,1.00571,1989.4,1989.3,1.68302]
[1742644370503,1.00569,1989.5,1989.3,1.68302]
[1742644370802,1.00569,1989.5,1989.3,3.02092]
[1742644370990,3.85373636,1989.7,1989.3,1.00572]
[1742644371195,3.85373636,1989.7,1989.3,2.34362]
[1742644371395,1.00569,1989.5,1989.4,1.00571]
[1742644371595,1.00569,1989.5,1989.4,2.34361]
[1742644371903,1.00563,1989.6,1989.5,1.00565]
[1742644372102,1.00565,1989.5,1989.4,1.3379]
[1742644372803,4.21345,1989.5,1989.4,1.3379]
[1742644373304,1.00571,1989.4,1989.3,1.00574]
[1742644373602,4.21349,1989.5,1989.3,2.38894]
[1742644373996,4.21349,1989.5,1989.4,2.38891]
[1742644374801,4.21349,1989.5,1989.4,1.00571]
[1742644375006,1.00574,1989.4,1989.3,1.00573]
[1742644375307,1.00574,1989.4,1989.3,2.39213]
[1742644375807,1.00574,1989.4,1989.3,1.3864]
[1742644376507,1.00574,1989.4,1989.3,2.39216]
[1742644376700,4.21349,1989.5,1989.3,2.39216]
[1742644376900,4.21349,1989.5,1989.4,2.0218]
[1742644377502,4.21349,1989.5,1989.4,3.02751]
[1742644377904,4.21349,1989.5,1989.4,2.0218]
[1742644378810,3.8741,1989.5,1989.2,4.91298]
[1742644379006,1.00571,1989.4,1989.3,1.3114]
[1742644380208,6.38828,1989.5,1989.1,0.6375]
[1742644380510,1.00581,1989.2,1989.0,1.00587]
[1742644380810,1.00581,1989.2,1989.1,2.95476]
[1742644381010,1.00581,1989.2,1989.1,1.9489]
[1742644381203,1.00581,1989.2,1989.1,2.95476]
[1742644381800,1.00581,1989.2,1989.1,2.31726]
[1742644382008,1.00591,1989.0,1988.9,5.1879]
[1742644382618,1.00591,1989.0,1988.9,6.19384]
[1742644383009,1.0059,1989.1,1989.0,1.0059]
[1742644383309,1.0059,1989.1,1989.0,2.297]
[1742644383509,1.0059,1989.1,1989.0,1.2911]
[1742644384813,2.3662,1989.1,1989.0,1.2911]
[1742644385510,2.3662,1989.1,1988.6,3.2078]
[1742644385511,11.2342,1989.1,1988.6,3.2078]
[1742644385707,1.00616,1988.5,1988.4,1.0062]
[1742644385912,1.00621,1988.4,1988.3,2.36433]
[1742644386210,2.36651,1988.4,1988.3,2.6392]
[1742644386405,1.3603,1988.4,1988.3,3.64546]
[1742644386715,0.00753636,1988.6,1988.5,1.00616]
[1742644387013,0.692,1989.1,1989.0,1.00591]
[1742644387215,4.1609,1989.2,1989.0,1.00591]
[1742644387516,1.0059,1989.1,1989.0,1.0059]
[1742644388121,4.1609,1989.2,1988.9,0.6517]
[1742644388122,4.1609,1989.2,1989.1,1.00586]
[1742644388323,4.16843636,1989.2,1989.1,1.00586]
[1742644389022,0.00753636,1989.2,1989.1,1.00586]
[1742644389519,0.00753636,1989.2,1989.1,2.37506]
[1742644389520,1.35363636,1989.2,1989.1,2.37506]
[1742644390126,2.35944636,1989.2,1989.1,2.37506]
[1742644390321,1.35363636,1989.2,1989.1,2.37506]
[1742644398628,0.00753636,1989.2,1989.1,2.37506]
[1742644400223,1.33853636,1989.2,1989.1,2.37506]
[1742644404419,0.00753636,1989.2,1989.1,2.37506]
[1742644405734,0.00753636,1989.2,1989.1,5.58286]
[1742644406122,5.86425,1989.7,1989.3,1.00576]
[1742644406324,1.3127,1989.6,1989.4,5.8517]
[1742644406529,1.3127,1989.6,1989.5,2.28725]
[1742644411137,2.3183,1989.6,1989.5,2.28725]
[1742644411337,1.3127,1989.6,1989.5,2.28725]
[1742644411532,2.3183,1989.6,1989.5,2.28725]
[1742644411738,1.3127,1989.6,1989.5,2.28725]
[1742644419841,2.3183,1989.6,1989.5,1.00565]
[1742644420944,1.00565,1989.5,1989.4,1.00568]
[1742644421242,3.67105,1989.5,1989.4,1.00568]
[1742644421948,2.6654,1989.5,1989.4,1.00568]
[1742644422139,3.67105,1989.5,1989.4,1.00568]
[1742644422341,3.67105,1989.5,1989.4,2.30178]
[1742644422938,2.6654,1989.5,1989.4,2.30178]
[1742644423445,3.67105,1989.5,1989.4,2.30178]
[1742644424145,2.6654,1989.5,1989.4,2.30178]
[1742644424934,1.9698,1989.5,1989.4,1.00568]
[1742644425138,2.97545,1989.5,1989.4,1.00568]
[1742644425339,1.00573,1989.4,1989.3,1.00573]
[1742644425547,1.00581,1989.3,1989.2,1.00578]
[1742644425749,1.69891,1989.3,1989.2,1.00578]
[1742644426149,2.97091,1989.3,1989.2,1.00578]
[1742644428545,1.272,1989.3,1989.2,1.00578]
[1742644428953,4.1609,1989.4,1989.3,1.00576]
[1742644429149,5.4796,1989.4,1989.3,3.02306]
[1742644431553,1.3187,1989.4,1989.3,3.02306]
[1742644438956,1.00577,1989.3,1989.2,1.00576]
[1742644439460,1.3763,1989.3,1989.2,1.00576]
[1742644439661,1.3763,1989.3,1989.2,2.39226]
[1742644440955,1.3763,1989.3,1989.2,5.60326]
[1742644441165,1.00567,1989.5,1989.4,1.00565]
[1742644441965,1.00567,1989.5,1989.4,1.64875]
[1742644442473,2.40797,1989.5,1989.4,1.00565]
[1742644442769,1.00571,1989.4,1989.3,3.08112]
[1742644442953,2.40801,1989.4,1989.3,3.08112]
[1742644443970,1.4023,1989.4,1989.2,3.8543]
[1742644444268,1.4023,1989.3,1989.2,5.2297]
[1742644444464,2.40808,1989.3,1989.2,1.00581]
[1742644444769,2.40808,1989.3,1989.2,2.38121]
[1742644451773,1.4023,1989.3,1989.2,2.38121]
[1742644452079,3.2078,1989.4,1989.3,1.00576]
[1742644452278,3.2078,1989.4,1989.3,3.05356]
[1742644452678,1.00568,1989.5,1989.4,1.00571]
[1742644452978,1.00568,1989.5,1989.4,3.02951]
[1742644455272,1.00568,1989.5,1989.4,1.366]
[1742644455471,1.67118,1989.5,1989.4,1.366]
[1742644457387,1.67118,1989.5,1989.4,2.37171]
[1742644457682,1.00568,1989.5,1989.4,2.37171]
[1742644457885,8.08364,1989.6,1989.5,1.00565]
[1742644458091,4.87064,1989.6,1989.5,2.98365]
[1742644458383,4.21344,1989.6,1989.5,2.98365]
[1742644459486,3.2078,1989.6,1989.5,2.98365]
[1742644462594,3.2078,1989.6,1989.5,6.18365]
[1742644465398,1.34643636,1989.7,1989.6,1.0056]
[1742644465597,1.34643636,1989.7,1989.6,3.0314]
[1742644468594,2.35198636,1989.7,1989.6,3.0314]
[1742644468799,1.34643636,1989.7,1989.6,3.0314]
[1742644473301,0.00753636,1989.7,1989.6,3.0314]
[1742644474703,0.00753636,1989.7,1989.6,6.2392]
[1742644476292,0.00753636,1989.7,1989.6,3.0314]
[1742644479008,1.2771,1990.1,1990.0,1.0054]
[1742644479702,1.2771,1990.1,1990.0,2.3895]
[1742644480008,2.28245,1990.1,1990.0,2.3895]
[1742644484008,1.2771,1990.1,1990.0,2.3895]
[1742644484308,2.28245,1990.1,1990.0,2.3895]
[1742644486514,1.0054,1990.0,1989.9,1.01294636]
[1742644486713,2.9823,1990.0,1989.9,4.20094636]
[1742644492610,1.3112,1990.0,1989.9,4.20094636]
[1742644492803,1.3112,1990.0,1989.9,4.83744636]
[1742644493013,1.3112,1990.0,1989.9,6.12024636]
[1742644494215,1.01287636,1990.2,1990.1,1.00535]
[1742644494615,0.00753636,1990.2,1990.1,1.00535]
[1742644494811,0.00753636,1990.2,1990.1,1.64595]
[1742644495214,0.00753636,1990.2,1990.1,4.83495]
[1742644495714,1.40043636,1990.2,1990.1,4.83495]
[1742644498512,0.00753636,1990.2,1990.1,4.83495]
[1742644498818,0.00753636,1990.2,1990.1,6.21555]
[1742644499620,1.34263636,1990.2,1990.1,6.21555]
[1742644499814,2.34793636,1990.2,1990.1,6.21555]
[1742644501309,2.34793636,1990.2,1990.1,5.2102]
[1742644501605,2.34793636,1990.2,1990.1,4.5696]
[1742644501915,1.0054,1990.0,1989.9,2.30167636]
[1742644502213,1.0054,1990.0,1989.9,6.79757636]
[1742644502415,1.0054,1990.0,1989.9,5.79213636]
[1742644502610,2.9809,1990.0,1989.9,5.79213636]
[1742644502816,2.9809,1990.0,1989.9,6.79758636]
[1742644510722,1.2913,1990.0,1989.9,6.79758636]
[1742644510931,2.2967,1990.0,1989.9,6.79758636]
[1742644512128,1.2913,1990.0,1989.9,6.79758636]
[1742644513120,2.2967,1990.0,1989.9,6.79758636]
[1742644514030,1.2913,1990.0,1989.9,6.79758636]
[1742644515930,1.01287636,1990.2,1990.1,1.00535]
[1742644516127,2.30227636,1990.2,1990.1,1.00535]
[1742644517929,1.29693636,1990.2,1990.1,1.00535]
[1742644518432,0.00753636,1990.2,1990.1,4.19235]
[1742644525538,0.00753636,1990.2,1990.1,7.40015]
[1742644528143,3.8879,1990.7,1990.6,1.0051]
[1742644528734,3.2078,1990.7,1990.6,1.0051]
[1742644529544,3.2078,1990.7,1990.6,2.3615]
[1742644529940,4.5875,1990.7,1990.6,2.3615]
[1742644530343,5.59255,1990.7,1990.6,2.3615]
[1742644530543,4.5875,1990.7,1990.6,2.3615]
[1742644531942,4.5875,1990.7,1990.6,3.0133]
[1742644532142,1.3797,1990.7,1990.6,3.0133]
[1742644534841,2.38475,1990.7,1990.6,3.0133]
[1742644537744,1.3797,1990.7,1990.6,3.0133]
[1742644538547,2.38475,1990.7,1990.6,3.0133]
[1742644544046,3.89234,1990.7,1990.3,3.2078]
[1742644544248,1.00515,1990.5,1990.4,3.185]